{"text_format":"1","workbook":"xlsx","n_sheets":2,"sheets":["ارقام","البيانات"],"not_rendered":{"charts":0,"images":0,"macros":1,"external_links":0,"defined_names":2,"comments":0,"pivot_tables":0},"unopened":[],"bounds":{"document_bytes":16777216,"sheet_cells":100000,"rows_first":2000,"rows_last":500,"rows_between":2000,"halvings":0,"cell_chars":16384,"cell_head_chars":4096},"cells_cut":0,"cells_raw":0,"read":"whole","date_system":"1900"}

{"sheet":"ارقام","index":0,"n_rows":4,"n_cols":14,"rows_kept":4,"cut":false,"hidden":false,"merged":[]}
["اسم المكتب","رقم الكتاب","تاريخ الكتاب","عدد الكتب","المبلغ",null,null,null,null,null,null,null,"اول تاريخ الايفاد","اخر تاريخ الايفاد"]
["مكتب رقم1",193,"2024-03-15",7,854,null,null,null,null,null,null,null,"2024-02-26","2024-02-28"]
["مكتب رقم2",200,"2024-03-20",10,1238,null,null,null,null,null,null,null,"2024-02-29","2024-03-01"]
["مكتب رقم10",205,"2024-03-20",7,1400,null,null,null,null,null,null,null,"2024-03-01","2024-03-01"]

{"sheet":"البيانات","index":1,"n_rows":100,"n_cols":23,"rows_kept":100,"cut":false,"hidden":false,"merged":[]}
[null,null,"تاريخ الايفاد",null,null,null,null,null,null,null,null,null,{"$f":"SUM(M1:M10)","v":0},"الغرامة","U10","اسم المكتب","رقم الكتاب","تاريخ الكتاب",null,null,null,null,"المبلغ"]
[null,null,"2024-02-26",null,null,null,null,null,null,null,null,null,0,1,null,"مكتب رقم1",193,"2024-03-15",null,null,null,null,122]
[null,null,"2024-02-26",null,null,null,null,null,null,null,null,null,0,2,null,"مكتب رقم1",193,"2024-03-15",null,null,null,null,122]
[null,null,"2024-02-27",null,null,null,null,null,null,null,null,null,0,5,null,"مكتب رقم1",193,"2024-03-15",null,null,null,null,122]
[null,null,"2024-02-27",null,null,null,null,null,null,null,null,null,0,1,null,"مكتب رقم1",193,"2024-03-15",null,null,null,null,122]
[null,null,"2024-02-28",null,null,null,null,null,null,null,null,null,0,0,null,"مكتب رقم1",193,"2024-03-15",null,null,null,null,122]
[null,null,"2024-02-28",null,null,null,null,null,null,null,null,null,0,0,null,"مكتب رقم1",193,"2024-03-15",null,null,null,null,122]
[null,null,"2024-02-28",null,null,null,null,null,null,null,null,null,0,6,null,"مكتب رقم1",193,"2024-03-15",null,null,null,null,122]
[null,null,"2024-02-29",null,null,null,null,null,null,null,null,null,29,0,null,"مكتب رقم2",200,"2024-03-20",null,null,null,null,122]
[null,null,"2024-02-29",null,null,null,null,null,null,null,null,null,28,0,null,"مكتب رقم2",200,"2024-03-20",null,null,null,null,122]
[null,null,"2024-02-29",null,null,null,null,null,null,null,null,null,30,0,null,"مكتب رقم2",200,"2024-03-20",null,null,null,null,122]
[null,null,"2024-02-29",null,null,null,null,null,null,null,null,null,30,0,null,"مكتب رقم2",200,"2024-03-20",null,null,null,null,122]
[null,null,"2024-02-29",null,null,null,null,null,null,null,null,null,32,0,null,"مكتب رقم2",200,"2024-03-20",null,null,null,null,125]
[null,null,"2024-02-29",null,null,null,null,null,null,null,null,null,33,0,null,"مكتب رقم2",200,"2024-03-20",null,null,null,null,125]
[null,null,"2024-02-29",null,null,null,null,null,null,null,null,null,34,0,null,"مكتب رقم2",200,"2024-03-20",null,null,null,null,125]
[null,null,"2024-02-29",null,null,null,null,null,null,null,null,null,29,0,null,"مكتب رقم2",200,"2024-03-20",null,null,null,null,125]
[null,null,"2024-02-29",null,null,null,null,null,null,null,null,null,28,0,null,"مكتب رقم2",200,"2024-03-20",null,null,null,null,125]
[null,null,"2024-03-01",null,null,null,null,null,null,null,null,null,30,0,null,"مكتب رقم2",200,"2024-03-20",null,null,null,null,125]
[null,null,"2024-03-01",null,null,null,null,null,null,null,null,null,30,0,null,"مكتب رقم10",205,"2024-03-20",null,null,null,null,125]
[null,null,"2024-03-01",null,null,null,null,null,null,null,null,null,32,0,null,"مكتب رقم10",205,"2024-03-20",null,null,null,null,125]
[null,null,"2024-03-01",null,null,null,null,null,null,null,null,null,33,0,null,"مكتب رقم10",205,"2024-03-20",null,null,null,null,125]
[null,null,"2024-03-01",null,null,null,null,null,null,null,null,null,34,0,null,"مكتب رقم10",205,"2024-03-20",null,null,null,null,125]
[null,null,"2024-03-01",null,null,null,null,null,null,null,null,null,29,0,null,"مكتب رقم10",205,"2024-03-20",null,null,null,null,300]
[null,null,"2024-03-01",null,null,null,null,null,null,null,null,null,28,0,null,"مكتب رقم10",205,"2024-03-20",null,null,null,null,300]
[null,null,"2024-03-01",null,null,null,null,null,null,null,null,null,30,11,null,"مكتب رقم10",205,"2024-03-20",null,null,null,null,300]
[]
[null,null,null,null,null,null,null,null,null,null,null,null,{"$f":"SUM(M27:M36)","v":0}]
[null,null,null,null,null,null,null,null,null,null,null,null,0]
[null,null,null,null,null,null,null,null,null,null,null,null,0]
[null,null,null,null,null,null,null,null,null,null,null,null,0]
[null,null,null,null,null,null,null,null,null,null,null,null,0]
[null,null,null,null,null,null,null,null,null,null,null,null,0]
[null,null,null,null,null,null,null,null,null,null,null,null,0]
[null,null,null,null,null,null,null,null,null,null,null,null,0]
[null,null,null,null,null,null,null,null,null,null,null,null,0]
[null,null,null,null,null,null,null,null,null,null,null,null,0]
[null,null,null,null,null,null,null,null,null,null,null,null,0]
[null,null,null,null,null,null,null,null,null,null,null,null,0]
[null,null,null,null,null,null,null,null,null,null,null,null,0]
[null,null,null,null,null,null,null,null,null,null,null,null,0]
[null,null,null,null,null,null,null,null,null,null,null,null,0]
[null,null,null,null,null,null,null,null,null,null,null,null,0]
[null,null,null,null,null,null,null,null,null,null,null,null,0]
[null,null,null,null,null,null,null,null,null,null,null,null,0]
[null,null,null,null,null,null,null,null,null,null,null,null,0]
[null,null,null,null,null,null,null,null,null,null,null,null,0]
[null,null,null,null,null,null,null,null,null,null,null,null,0]
[null,null,null,null,null,null,null,null,null,null,null,null,0]
[null,null,null,null,null,null,null,null,null,null,null,null,0]
[null,null,null,null,null,null,null,null,null,null,null,null,0]
[null,null,null,null,null,null,null,null,null,null,null,null,0]
[null,null,null,null,null,null,null,null,null,null,null,null,0]
[null,null,null,null,null,null,null,null,null,null,null,null,0]
[null,null,null,null,null,null,null,null,null,null,null,null,0]
[null,null,null,null,null,null,null,null,null,null,null,null,0]
[null,null,null,null,null,null,null,null,null,null,null,null,0]
[null,null,null,null,null,null,null,null,null,null,null,null,0]
[null,null,null,null,null,null,null,null,null,null,null,null,0]
[null,null,null,null,null,null,null,null,null,null,null,null,{"$f":"SUM(M59:M68)","v":0}]
[null,null,null,null,null,null,null,null,null,null,null,null,0]
[null,null,null,null,null,null,null,null,null,null,null,null,0]
[null,null,null,null,null,null,null,null,null,null,null,null,0]
[null,null,null,null,null,null,null,null,null,null,null,null,0]
[null,null,null,null,null,null,null,null,null,null,null,null,0]
[null,null,null,null,null,null,null,null,null,null,null,null,0]
[null,null,null,null,null,null,null,null,null,null,null,null,0]
[null,null,null,null,null,null,null,null,null,null,null,null,0]
[null,null,null,null,null,null,null,null,null,null,null,null,0]
[null,null,null,null,null,null,null,null,null,null,null,null,0]
[null,null,null,null,null,null,null,null,null,null,null,null,0]
[null,null,null,null,null,null,null,null,null,null,null,null,0]
[null,null,null,null,null,null,null,null,null,null,null,null,0]
[null,null,null,null,null,null,null,null,null,null,null,null,0]
[null,null,null,null,null,null,null,null,null,null,null,null,0]
[null,null,null,null,null,null,null,null,null,null,null,null,0]
[null,null,null,null,null,null,null,null,null,null,null,null,0]
[null,null,null,null,null,null,null,null,null,null,null,null,0]
[null,null,null,null,null,null,null,null,null,null,null,null,0]
[null,null,null,null,null,null,null,null,null,null,null,null,0]
[null,null,null,null,null,null,null,null,null,null,null,null,0]
[null,null,null,null,null,null,null,null,null,null,null,null,0]
[null,null,null,null,null,null,null,null,null,null,null,null,0]
[null,null,null,null,null,null,null,null,null,null,null,null,0]
[null,null,null,null,null,null,null,null,null,null,null,null,0]
[null,null,null,null,null,null,null,null,null,null,null,null,0]
[null,null,null,null,null,null,null,null,null,null,null,null,0]
[null,null,null,null,null,null,null,null,null,null,null,null,0]
[null,null,null,null,null,null,null,null,null,null,null,null,0]
[null,null,null,null,null,null,null,null,null,null,null,null,0]
[null,null,null,null,null,null,null,null,null,null,null,null,0]
[null,null,null,null,null,null,null,null,null,null,null,null,{"$f":"SUM(M91:M100)","v":0}]
[null,null,null,null,null,null,null,null,null,null,null,null,0]
[null,null,null,null,null,null,null,null,null,null,null,null,0]
[null,null,null,null,null,null,null,null,null,null,null,null,0]
[null,null,null,null,null,null,null,null,null,null,null,null,0]
[null,null,null,null,null,null,null,null,null,null,null,null,0]
[null,null,null,null,null,null,null,null,null,null,null,null,0]
[null,null,null,null,null,null,null,null,null,null,null,null,0]
[null,null,null,null,null,null,null,null,null,null,null,null,0]
[null,null,null,null,null,null,null,null,null,null,null,null,0]